bitfinex-derivatives/quotes_SOLF0:USTF0_20250703
["timestamp","ask_amount","ask_price","bid_price","bid_amount"]
[1751510865945,2.43089224,152.2,152.17,2.43089224]
[1751510866445,2.43089224,152.2,152.18,6.5684]
[1751510868746,8.99809224,152.21,152.18,6.5684]
[1751510875257,6.5672,152.21,152.18,6.5684]
[1751510875457,8.99809224,152.21,152.18,6.5684]
[1751510878361,8.99809224,152.21,152.19,6.5679]
[1751510878860,6.5672,152.21,152.19,6.5679]
[1751510879258,8.99779224,152.22,152.19,6.5679]
[1751510881254,6.5672,152.21,152.19,6.5679]
[1751510882062,8.99809224,152.21,152.19,6.5679]
[1751510882463,8.99809224,152.21,152.17,2.43089224]
[1751510882464,8.99809224,152.21,152.18,6.5682]
[1751510883365,2.43089224,152.19,152.15,2.1761]
[1751510883564,2.43089224,152.18,152.15,2.1761]
[1751510884063,8.99959224,152.18,152.15,8.7457]
[1751510884661,2.43089224,152.21,152.17,2.43089224]
[1751510885166,8.99889224,152.2,152.17,8.99949224]
[1751510887068,2.43089224,152.2,152.18,6.5684]
[1751510887469,2.43089224,152.2,152.17,2.43089224]
[1751510887673,8.99859224,152.2,152.17,8.99949224]
[1751510888169,8.99859224,152.2,152.17,2.43089224]
[1751510888764,6.5677,152.2,152.17,2.43089224]
[1751510889570,6.5677,152.2,152.18,6.5684]
[1751510889969,6.5677,152.2,152.17,2.43089224]
[1751510890470,6.5677,152.2,152.17,8.99949224]
[1751510890672,6.5683,152.19,152.16,2.43089224]
[1751510891474,6.5683,152.19,152.16,9.00009224]
[1751510895478,6.5683,152.19,152.17,6.5688]
[1751510896070,6.5683,152.19,152.17,8.99969224]
[1751510896675,6.5678,152.2,152.17,8.99969224]
[1751510897471,2.43089224,152.18,152.16,45.24]
[1751510897678,2.43089224,152.19,152.16,45.24]
[1751510898074,8.99919224,152.19,152.16,51.809]
[1751510899378,6.5683,152.19,152.16,54.23989224]
[1751510900579,6.5685,152.18,152.16,54.23989224]
[1751510900972,6.5685,152.18,152.16,51.809]
[1751510902279,8.99909224,152.19,152.16,51.809]
[1751510903281,8.99909224,152.19,152.16,54.23989224]
[1751510903482,6.5685,152.18,152.16,47.67089224]
[1751510903981,6.5685,152.18,152.16,45.24]
[1751510904376,6.5685,152.18,152.16,47.67089224]
[1751510906381,6.5689,152.17,152.16,45.24]
[1751510906679,2.43089224,152.18,152.16,45.24]
[1751510907478,8.99979224,152.17,152.16,45.24]
[1751510907681,2.43089224,152.17,152.12,45.24]
[1751510907979,2.43089224,152.17,152.13,2.43089224]
[1751510908384,2.43089224,152.17,152.14,2.43089224]
[1751510908585,2.43089224,152.18,152.14,2.43089224]
[1751510908785,6.5691,152.17,152.14,9.00069224]
[1751510909588,2.43089224,152.16,152.12,45.24]
[1751510909886,2.43089224,152.16,152.12,47.67089224]
[1751510910183,6.22552306,152.2,152.12,45.24]
[1751510910184,2.43089224,152.15,152.12,45.24]
[1751510910388,2.43089224,152.13,152.09,45.24]
[1751510910592,2.43089224,152.12,152.09,47.67089224]
[1751510910786,9.00209224,152.12,152.09,54.24319224]
[1751510911288,9.00209224,152.12,152.09,47.67089224]
[1751510911689,9.00239224,152.11,152.09,45.24]
[1751510912892,9.00279224,152.1,152.09,45.24]
[1751510913987,6.5724,152.09,152.06,8.8211]
[1751510914188,6.5724,152.09,152.06,4.67849224]
[1751510914189,2.43089224,152.09,152.06,4.67849224]
[1751510914786,2.43089224,152.09,152.06,2.2476]
[1751510915087,2.43089224,152.09,152.06,4.67849224]
[1751510915283,2.43089224,152.09,152.06,11.25169224]
[1751510915993,2.43089224,152.08,152.05,45.24]
[1751510916290,51.32202397,152.14,152.03,2.1573]
[1751510916487,9.00289224,152.1,152.06,9.00419224]
[1751510916690,9.00289224,152.1,152.06,2.43089224]
[1751510916884,2.336,152.15,152.09,2.43089224]
[1751510917191,6.08202397,152.18,152.14,2.43089224]
[1751510917391,6.08202397,152.19,152.16,2.43089224]
[1751510917695,6.5685,152.18,152.16,2.43089224]
[1751510918290,2.43089224,152.2,152.16,2.43089224]
[1751510918897,2.43089224,152.19,152.13,2.3088]
[1751510919293,51.34202397,152.23,152.16,9.00009224]
[1751510919493,2.43089224,152.22,152.18,2.43089224]
[1751510919895,6.5675,152.21,152.17,6.5686]
[1751510920595,6.5676,152.2,152.17,6.5686]
[1751510920997,51.34202397,152.23,152.18,6.5684]
[1751510921195,6.567,152.22,152.18,6.5684]
[1751510921691,6.567,152.22,152.16,3.79771382]
[1751510922000,6.06951382,152.24,152.16,3.79771382]
[1751510922001,112.91722538,152.25,152.2,3.79771382]
[1751510922196,112.91722538,152.25,152.22,3.79771382]
[1751510922398,119.48292538,152.25,152.22,3.79771382]
[1751510923087,6.08202397,152.29,152.24,3.79771382]
[1751510923290,3.79771382,152.31,152.24,3.79771382]
[1751510923488,6.5648,152.27,152.23,6.5663]
[1751510923698,3.79771382,152.29,152.23,6.5663]
[1751510923996,6.5651,152.26,152.22,12.58231382]
[1751510924197,3.79771382,152.29,152.22,12.58231382]
[1751510924496,3.79771382,152.29,152.22,3.79771382]
[1751510925502,6.5651,152.26,152.22,10.36431382]
[1751510926893,13.79288244,152.31,152.24,3.79771382]
[1751510927088,9.87973779,152.31,152.24,3.79771382]
[1751510927294,6.564,152.29,152.25,6.5654]
[1751510927993,6.564,152.29,152.24,10.36341382]
[1751510928693,6.564,152.29,152.25,6.5653]
[1751510929599,6.5634,152.3,152.26,6.565]
[1751510929794,5.99801382,152.33,152.26,3.79771382]
[1751510929995,5.99801382,152.33,152.26,49.11771382]
[1751510930497,9.87973779,152.35,152.28,3.79771382]
[1751510930698,3.79771382,152.35,152.28,3.79771382]
[1751510931600,3.79771382,152.35,152.28,10.36141382]
[1751510931900,3.79771382,152.35,152.28,3.79771382]
[1751510932696,6.562,152.33,152.28,10.36161382]
[1751510933198,3.79771382,152.35,152.28,10.36161382]
[1751510933398,6.5627,152.32,152.28,10.36161382]
[1751510936103,6.5627,152.32,152.29,6.5636]
[1751510937495,3.79771382,152.35,152.29,6.5636]
[1751510937496,6.5621,152.33,152.29,6.5636]
[1751510937695,6.5621,152.33,152.3,6.5632]
[1751510939104,6.5617,152.34,152.31,6.5627]
[1751510939304,3.79771382,152.37,152.3,3.79771382]
[1751510939505,6.5618,152.34,152.3,3.79771382]
[1751510939706,6.5618,152.34,152.3,10.36071382]
[1751510940205,6.562,152.33,152.3,10.36071382]
[1751510940403,3.79771382,152.37,152.31,6.5627]
[1751510941007,6.5614,152.35,152.31,51.8627]
[1751510943410,6.5614,152.35,152.32,6.5621]
[1751510944108,6.5614,152.35,152.31,51.8627]
[1751510944510,6.5614,152.35,152.31,45.3]
[1751510945009,6.5614,152.35,152.32,6.5624]
[1751510947512,6.5614,152.35,152.31,51.8627]
[1751510947713,6.5614,152.35,152.31,45.3]
[1751510948112,6.5614,152.35,152.32,6.562]
[1751510948805,6.5614,152.35,152.32,10.35971382]
[1751510949005,3.79771382,152.38,152.32,10.35971382]
[1751510949006,6.5608,152.36,152.33,6.5619]
[1751510949309,3.79771382,152.38,152.31,45.3]
[1751510949516,3.79771382,152.36,152.31,45.3]
[1751510949714,6.5622,152.33,152.31,45.3]
[1751510951013,3.79771382,152.36,152.31,45.3]
[1751510951513,3.79771382,152.39,152.31,49.09771382]
[1751510952018,0.04297896,152.35,152.31,49.09771382]
[1751510952619,0.04297896,152.35,152.31,49.13918556]
[1751510952820,0.04297896,152.35,152.31,3.83918556]
[1751510953023,0.04297896,152.35,152.32,45.28]
[1751510953417,0.04297896,152.35,152.32,51.842]
[1751510953712,0.04297896,152.35,152.32,45.28]
[1751510953915,0.04297896,152.35,152.33,3.79771382]
[1751510954913,3.79771382,152.42,152.33,6.10731382]
[1751510955123,3.79771382,152.42,152.35,3.79771382]
[1751510955309,3.79771382,152.42,152.35,6.5609]
[1751510955620,3.79771382,152.42,152.34,3.79771382]
[1751510956114,46.36233193,152.44,152.34,3.79771382]
[1751510956317,3.79771382,152.42,152.36,6.60265935]
[1751510956713,6.5593,152.4,152.36,6.60265935]
[1751510957018,6.5593,152.4,152.37,6.5602]
[1751510957214,6.5602,152.38,152.36,0.04215935]
[1751510958212,3.79771382,152.4,152.36,0.04215935]
[1751510958415,46.36227569,152.44,152.36,0.04215935]
[1751510958611,3.79771382,152.41,152.36,0.04215935]
[1751510958818,6.5602,152.38,152.36,0.04215935]
[1751510959020,3.79771382,152.41,152.36,0.04215935]
[1751510959417,6.5603,152.37,152.36,0.04215935]
[1751510959618,3.79771382,152.41,152.36,0.04215935]
[1751510959917,6.5603,152.37,152.36,0.04215935]
[1751510960819,6.5603,152.37,152.36,5.935e-05]
[1751510961021,10.35801382,152.37,152.36,5.935e-05]
[1751510961915,6.5603,152.37,152.36,5.935e-05]
[1751510971020,6.56,152.38,152.36,5.935e-05]
[1751510971425,6.5603,152.37,152.36,5.935e-05]
[1751510972525,6.56,152.38,152.36,5.935e-05]
[1751510972730,6.0764759,152.4,152.36,6.56065935]
[1751510973124,6.5597,152.39,152.36,6.56065935]
[1751510973323,6.5597,152.39,152.37,6.5602]
[1751510974027,6.5597,152.39,152.36,51.76055935]
[1751510978332,6.5599,152.38,152.36,45.20005935]
[1751510979033,6.0764759,152.41,152.36,45.20005935]
[1751510979327,3.79771382,152.4,152.36,45.20005935]
[1751510979632,9.87418972,152.4,152.36,45.20005935]
[1751510980132,6.5603,152.37,152.36,5.935e-05]
[1751510981734,8.05804323,152.37,152.28,45.2]
[1751510981926,3.79771382,152.33,152.28,45.2]
[1751510982125,6.5626,152.32,152.28,45.2]
[1751510982632,6.5626,152.32,152.28,51.7639]
[1751510982825,10.35991382,152.33,152.28,45.2]
[1751510983231,10.35991382,152.33,152.29,6.5635]
[1751510984031,6.5617,152.34,152.29,3.79771382]
[1751510984536,6.5617,152.34,152.31,6.5626]
[1751510984729,9.88995012,152.37,152.31,6.5626]
[1751510985125,3.79771382,152.37,152.31,6.5626]
[1751510985527,9.88995012,152.37,152.31,6.5626]
[1751510985930,6.0922363,152.36,152.31,6.5626]
[1751510986426,6.0922363,152.36,152.29,3.79771382]
[1751510986427,6.5621,152.33,152.29,3.79771382]
[1751510987335,6.5621,152.33,152.29,10.36111382]
[1751510988033,3.79771382,152.35,152.28,51.764]
[1751510988235,9.88995012,152.35,152.28,45.2]
[1751510988734,6.5627,152.32,152.28,51.764]
[1751510989839,6.5627,152.32,152.29,6.5637]
[1751510990532,6.5629,152.31,152.28,51.764]
[1751510990734,3.79771382,152.31,152.26,2.2479]
[1751510992639,6.5634,152.3,152.27,6.5645]
[1751510992831,6.5634,152.3,152.26,2.2479]
[1751510993031,6.564,152.29,152.26,8.8126]
[1751510994338,3.79771382,152.33,152.26,6.04561382]
[1751510994742,6.562,152.33,152.29,6.5635]
[1751510994941,3.79771382,152.35,152.29,6.5635]
[1751510995544,6.5628,152.32,152.29,6.5635]
[1751510996549,6.5628,152.31,152.28,10.36161382]
[1751510997043,9.88995012,152.35,152.28,10.36161382]
[1751510997246,9.88995012,152.35,152.28,3.79771382]
[1751510997750,3.79771382,152.33,152.27,6.5644]
[1751510999151,6.5633,152.3,152.27,6.5644]
[1751511000251,6.5633,152.3,152.26,12.61041382]
[1751511000654,6.5638,152.29,152.26,8.8127]
[1751511003360,6.5642,152.28,152.26,2.2479]
[1751511003559,6.5642,152.28,152.25,54.2142]
[1751511003754,6.5639,152.29,152.26,6.565]
[1751511003953,3.79771382,152.31,152.26,3.79771382]
[1751511004354,6.5636,152.3,152.27,6.5646]
[1751511004755,6.5638,152.29,152.26,10.36251382]
[1751511005060,3.79771382,152.31,152.25,47.649]
[1751511005356,51.4322363,152.34,152.25,45.32]
[1751511005357,6.565,152.26,152.25,45.32]
[1751511005757,6.565,152.26,152.22,5.99271382]
[1751511006851,3.79771382,152.29,152.22,5.99271382]
[1751511007157,3.79771382,152.31,152.24,3.79771382]
[1751511007351,3.79771382,152.33,152.26,3.79771382]
[1751511007551,3.79771382,152.33,152.26,49.13771382]
[1751511008353,6.5641,152.28,152.26,49.13771382]
[1751511008857,3.79771382,152.33,152.26,49.13771382]
[1751511009157,6.5637,152.3,152.26,55.70271382]
[1751511010058,6.5637,152.3,152.27,6.5645]
[1751511010853,6.5637,152.3,152.26,55.70251382]
[1751511011058,6.5637,152.29,152.26,55.70251382]
[1751511011356,3.79771382,152.33,152.26,55.70251382]
[1751511011357,3.79771382,152.31,152.26,45.34]
[1751511011557,3.79771382,152.33,152.26,49.13771382]
[1751511012060,3.79771382,152.33,152.27,6.5644]
[1751511012254,6.5632,152.31,152.26,51.28131382]
[1751511012458,3.79771382,152.33,152.28,6.5639]
[1751511012654,6.5628,152.32,152.28,6.5639]
[1751511013160,6.5628,152.32,152.26,51.28131382]
[1751511013760,6.5628,152.32,152.28,6.5638]
[1751511014565,3.79771382,152.33,152.26,51.28131382]
[1751511014566,6.5628,152.31,152.29,6.5637]
[1751511014765,3.79771382,152.33,152.29,6.5637]
[1751511015267,6.5626,152.32,152.29,6.5637]
[1751511015470,6.5626,152.32,152.26,51.28131382]
[1751511015668,3.79771382,152.33,152.26,51.28131382]
[1751511015868,6.5629,152.31,152.29,6.5636]
[1751511016570,6.5626,152.32,152.29,6.5636]
[1751511017569,6.5629,152.31,152.29,6.5636]
[1751511017867,6.5629,152.31,152.26,51.28131382]
[1751511018567,6.5626,152.32,152.26,51.28131382]
[1751511018969,3.79771382,152.33,152.26,47.4836]
[1751511019171,3.79771382,152.33,152.26,51.28131382]
[1751511019376,6.5628,152.31,152.26,51.28131382]
[1751511019573,6.5628,152.31,152.29,6.5637]
[1751511020570,6.5626,152.32,152.29,6.5637]
[1751511021368,6.0922363,152.35,152.28,3.79771382]
[1751511021673,3.79771382,152.35,152.28,3.79771382]
[1751511022373,9.88995012,152.38,152.32,3.79771382]
[1751511022672,3.79771382,152.38,152.32,3.79771382]
[1751511023371,9.88995012,152.4,152.32,6.08931382]
[1751511023571,6.5603,152.37,152.34,6.5614]
[1751511024370,6.5603,152.37,152.35,6.5611]
[1751511024572,6.5603,152.37,152.33,3.79771382]
[1751511024773,6.5603,152.37,152.34,6.5614]
[1751511024973,6.5607,152.36,152.34,6.5614]
[1751511025673,6.5607,152.36,152.33,6.5618]
[1751511027177,6.5604,152.37,152.34,6.5614]
[1751511029373,6.5601,152.38,152.34,6.5615]
[1751511029677,9.88995012,152.4,152.34,6.5615]
[1751511030479,6.5603,152.37,152.34,6.5615]
[1751511030779,9.88995012,152.4,152.34,6.5615]
[1751511031380,6.0922363,152.4,152.32,8.44501382]
[1751511031575,6.5597,152.39,152.34,3.79771382]
[1751511032779,6.5597,152.39,152.36,6.5604]
[1751511034584,6.5597,152.39,152.37,6.5603]
[1751511034981,6.5591,152.4,152.37,6.5603]
[1751511036085,6.5594,152.39,152.37,6.5603]
[1751511036781,6.5594,152.39,152.36,10.35821382]
[1751511038988,3.79771382,152.42,152.32,10.62001382]
[1751511039189,3.79771382,152.42,152.34,3.79771382]
[1751511039487,6.5601,152.38,152.35,6.5608]
[1751511040389,6.5595,152.39,152.36,10.35841382]
[1751511040781,6.5592,152.4,152.37,6.5602]
[1751511041185,3.79771382,152.42,152.36,3.79771382]
[1751511041484,6.5594,152.4,152.36,10.35811382]
[1751511042687,6.5594,152.39,152.36,10.35811382]
[1751511043488,6.5594,152.39,152.37,6.5602]
[1751511043681,6.5592,152.4,152.37,6.5602]
[1751511043881,11.00196012,152.44,152.36,10.35821382]
[1751511044184,6.5596,152.39,152.36,10.35821382]
[1751511047490,6.5596,152.39,152.37,6.5602]
[1751511048689,6.559,152.4,152.37,6.5602]
[1751511049390,6.5594,152.39,152.36,10.35821382]
[1751511049889,6.5594,152.39,152.36,3.79771382]
[1751511050587,6.5594,152.39,152.37,6.5602]
[1751511052395,6.5592,152.4,152.37,6.5602]
[1751511052596,3.79771382,152.44,152.32,10.62001382]
[1751511052896,6.5592,152.4,152.36,3.79771382]
[1751511053092,6.5592,152.4,152.37,6.56]
[1751511053995,3.79771382,152.44,152.37,6.56]
[1751511054294,9.85968443,152.44,152.37,6.56]
[1751511054494,6.5591,152.4,152.37,6.56]
[1751511055796,6.5594,152.39,152.37,6.56]
[1751511057196,6.5592,152.4,152.37,6.56]
[1751511058298,6.5587,152.41,152.38,6.5597]
[1751511058499,6.06197061,152.44,152.38,3.79771382]
[1751511058696,6.5577,152.44,152.4,6.5588]
[1751511058897,163.87838016,152.47,152.4,3.79771382]
[1751511059496,163.87838016,152.47,152.42,6.558]
[1751511059698,157.81640955,152.47,152.42,10.35571382]
[1751511059898,157.81640955,152.47,152.43,6.5577]
[1751511060098,112.59640955,152.47,152.43,6.5577]
[1751511061199,3.79771382,152.49,152.44,6.5572]
[1751511061698,6.5562,152.47,152.44,6.5572]
[1751511063298,6.5562,152.47,152.45,6.5568]
[1751511064005,6.5556,152.48,152.45,6.5568]
[1751511064295,53.43897061,152.51,152.44,10.35481382]
[1751511064893,53.43897061,152.51,152.44,3.79771382]
[1751511065095,3.79771382,152.5,152.42,8.30091382]
[1751511065503,6.5567,152.46,152.43,6.5574]
[1751511065703,53.43897061,152.51,152.44,3.79771382]
[1751511065899,6.5547,152.5,152.42,4.5032]
[1751511066103,6.06442652,152.53,152.47,3.79771382]
[1751511066304,3.79771382,152.52,152.43,2.1598]
[1751511066505,3.79771382,152.52,152.45,3.79771382]
[1751511066802,6.06442652,152.54,152.45,3.79771382]
[1751511067104,6.555,152.5,152.46,6.556]
[1751511067398,6.555,152.5,152.45,3.79771382]
[1751511067598,6.554,152.52,152.48,6.5552]
[1751511068805,6.5543,152.51,152.48,6.5552]
[1751511069104,55.06214034,152.55,152.47,10.35361382]
[1751511069303,6.5547,152.5,152.47,10.35361382]
[1751511069603,3.79771382,152.54,152.47,10.35361382]
[1751511069798,6.5545,152.51,152.47,3.79771382]
[1751511070003,6.5545,152.51,152.48,6.5555]
[1751511070202,45.2,152.55,152.47,3.79771382]
[1751511070501,6.5541,152.52,152.49,6.5551]
[1751511070804,48.99771382,152.55,152.48,3.79771382]
[1751511071406,48.99771382,152.55,152.48,10.35311382]
[1751511071805,6.5542,152.52,152.48,10.35311382]
[1751511073206,6.5542,152.52,152.49,6.5551]
[1751511073403,6.5543,152.51,152.48,3.79771382]
[1751511073801,6.5543,152.51,152.48,10.35311382]
[1751511074403,48.99771382,152.55,152.48,10.35311382]
[1751511074599,48.99771382,152.55,152.48,3.79771382]
[1751511075300,48.99771382,152.55,152.47,6.5559]
[1751511075506,3.79771382,152.53,152.46,45.2]
[1751511075705,3.79771382,152.51,152.46,45.2]
[1751511075905,6.5558,152.48,152.46,45.2]
[1751511076210,3.79771382,152.51,152.46,45.2]
[1751511077809,6.5558,152.48,152.46,45.2]
[1751511078808,6.556,152.47,152.46,45.2]
[1751511080106,6.556,152.47,152.45,3.79771382]
[1751511081711,51.24593924,152.55,152.45,3.79771382]
[1751511081905,51.24593924,152.55,152.43,2.1598]
[1751511081906,45.2,152.55,152.43,2.1598]
[1751511082110,48.99771382,152.55,152.48,3.79771382]
[1751511082311,6.5551,152.49,152.48,3.79771382]
[1751511082612,6.5551,152.49,152.46,6.5561]
[1751511082613,3.79771382,152.52,152.46,3.79771382]
[1751511082805,3.79771382,152.52,152.44,3.79771382]
[1751511083010,3.79771382,152.51,152.44,3.79771382]
[1751511084418,6.5564,152.46,152.44,3.79771382]
[1751511085613,6.5561,152.47,152.44,10.35491382]
[1751511086009,3.79771382,152.49,152.42,54.22091382]
[1751511086206,3.79771382,152.49,152.42,60.77861382]
[1751511086716,6.5568,152.45,152.42,60.77861382]
[1751511087110,3.79771382,152.49,152.42,50.4232]
[1751511087320,6.5575,152.44,152.42,50.4232]
[1751511087915,6.557,152.45,152.42,50.4232]
[1751511088614,3.79771382,152.47,152.42,48.1377]
[1751511088814,3.79771382,152.47,152.42,45.92]
[1751511089214,6.5577,152.43,152.42,45.92]
[1751511090817,6.5574,152.44,152.42,45.92]
[1751511092517,6.5577,152.43,152.42,45.92]
[1751511092715,3.79771382,152.47,152.38,2.2374]
[1751511092912,3.79771382,152.45,152.38,51.95511382]
[1751511093116,6.5585,152.42,152.38,58.51471382]
[1751511093318,6.5585,152.42,152.38,51.95511382]
[1751511093913,6.5585,152.42,152.39,6.5591]
[1751511094221,6.5579,152.43,152.38,51.95511382]
[1751511094421,3.79771382,152.45,152.38,51.95511382]
[1751511094919,3.79771382,152.45,152.4,6.559]
[1751511095420,6.5581,152.42,152.4,6.559]
[1751511095622,6.5581,152.42,152.39,6.5592]
[1751511095819,3.79771382,152.45,152.38,51.95511382]
[1751511096116,3.79771382,152.47,152.4,3.79771382]
[1751511096320,6.558,152.43,152.4,3.79771382]
[1751511097017,6.5581,152.42,152.4,3.79771382]
[1751511097718,3.79771382,152.47,152.38,48.1574]
[1751511097719,6.5585,152.41,152.38,51.95511382]
[1751511097919,6.5585,152.41,152.38,49.71771382]
[1751511098420,6.559,152.4,152.38,49.71771382]
[1751511098623,3.79771382,152.43,152.37,2.3663]
[1751511100318,6.5598,152.39,152.37,2.3663]
[1751511101127,3.79771382,152.41,152.34,49.71771382]
[1751511101628,6.5601,152.38,152.35,6.5611]
[1751511101925,6.5601,152.38,152.34,56.27911382]
[1751511103229,6.5604,152.37,152.34,56.27911382]
[1751511103526,3.79771382,152.41,152.34,45.92]
[1751511104124,6.5605,152.37,152.34,52.4815]
[1751511108832,6.5609,152.36,152.34,45.92]
[1751511109031,3.79771382,152.4,152.34,45.92]
[1751511109731,3.79771382,152.4,152.34,52.4814]
[1751511110434,3.79771382,152.4,152.34,45.92]
[1751511110629,3.79771382,152.38,152.34,45.92]
[1751511112235,3.79771382,152.41,152.34,45.92]
[1751511112632,3.79771382,152.41,152.34,52.4813]
[1751511113637,1.4022,152.43,152.34,45.92]
[1751511113935,3.79771382,152.44,152.37,3.79771382]
[1751511114135,6.5588,152.41,152.37,3.79771382]
[1751511115035,6.5588,152.41,152.37,10.35771382]
[1751511115339,6.5591,152.4,152.37,10.35771382]
[1751511116942,45.9,152.45,152.39,3.79771382]
[1751511117342,6.558,152.43,152.4,6.5589]
[1751511117541,6.558,152.43,152.41,3.79771382]
[1751511119445,6.558,152.43,152.41,10.35621382]
[1751511119641,6.5574,152.44,152.41,10.35621382]
[1751511120146,6.5569,152.45,152.42,6.5581]
[1751511122346,6.5577,152.43,152.4,10.9273]
[1751511122546,6.5577,152.43,152.4,14.72501382]
[1751511122746,3.79771382,152.48,152.4,8.16621382]
[1751511123246,6.5571,152.45,152.42,3.79771382]
[1751511123749,6.5571,152.45,152.42,10.35551382]
[1751511125350,6.5573,152.44,152.42,3.79771382]
[1751511126146,6.557,152.45,152.42,10.35581382]
[1751511126347,3.79771382,152.48,152.42,3.79771382]
[1751511128450,6.5572,152.45,152.42,3.79771382]
[1751511128848,3.79771382,152.48,152.42,3.79771382]
[1751511129846,3.79771382,152.48,152.4,4.3685]
[1751511130043,3.79771382,152.46,152.4,4.3685]
[1751511130448,6.558,152.43,152.4,4.3685]
[1751511132445,6.558,152.43,152.4,10.9272]
[1751511132752,6.5573,152.44,152.41,3.79771382]
[1751511133151,6.5573,152.44,152.41,10.35601382]
[1751511133847,51.95378459,152.49,152.42,6.5581]
[1751511134051,55.75149841,152.49,152.42,6.5581]
[1751511135656,6.5568,152.46,152.42,6.5581]
[1751511135951,6.5568,152.46,152.43,6.5576]
[1751511138258,6.5569,152.45,152.42,6.5579]
[1751511141357,6.5569,152.45,152.43,6.5577]
[1751511141859,6.5564,152.46,152.43,6.5577]
[1751511142260,6.5569,152.45,152.43,6.5577]
[1751511142559,6.5569,152.45,152.42,6.5579]
[1751511143856,6.5574,152.44,152.41,10.35601382]
[1751511144362,6.557,152.45,152.42,6.5579]
[1751511145466,6.5573,152.44,152.42,6.5579]
[1751511146262,6.5573,152.44,152.41,10.35601382]
[1751511148264,6.5573,152.44,152.42,6.5581]
[1751511149766,6.5573,152.44,152.42,8.98113057]
[1751511150465,2.42303057,152.46,152.4,6.5114]
[1751511150661,2.42303057,152.45,152.41,2.42303057]
[1751511151059,6.5578,152.43,152.41,2.42303057]
[1751511151664,6.5578,152.43,152.4,13.07]
[1751511153271,6.5578,152.43,152.41,6.5585]
[1751511153569,6.5574,152.44,152.41,6.5585]
[1751511153773,3.78649367,152.47,152.41,6.5585]
[1751511154868,6.5579,152.43,152.4,13.0702]
[1751511155974,3.78649367,152.45,152.39,45.9]
[1751511156174,3.78649367,152.43,152.39,45.9]
[1751511156473,3.78649367,152.41,152.35,45.76]
[1751511156774,3.78649367,152.39,152.35,45.76]
[1751511157475,6.5605,152.37,152.35,45.76]
[1751511158270,6.5607,152.36,152.35,45.76]
[1751511158673,3.78649367,152.37,152.32,12.66672894]
[1751511158874,6.561,152.36,152.31,243.08452894]
[1751511159071,3.78649367,152.37,152.31,236.98]
[1751511159575,3.78649367,152.37,152.31,236.96]
[1751511159878,3.78649367,152.37,152.31,45.76]
[1751511160081,6.5614,152.35,152.32,6.5623]
[1751511162578,6.5616,152.34,152.31,52.3226]
[1751511162777,3.78649367,152.37,152.31,236.88]
[1751511163080,6.5613,152.35,152.32,6.5621]
[1751511164976,3.78649367,152.38,152.31,236.88]
[1751511165181,6.5618,152.34,152.31,240.66649367]
[1751511165583,6.5617,152.34,152.31,247.22929367]
[1751511166278,6.5617,152.34,152.31,247.26929367]
[1751511166877,6.562,152.33,152.31,49.54649367]
[1751511167081,6.562,152.33,152.31,236.9]
[1751511167285,3.78649367,152.36,152.31,45.76]
[1751511169384,6.562,152.34,152.31,45.76]
[1751511170384,6.5611,152.35,152.31,49.54649367]
[1751511170683,3.78649367,152.38,152.31,49.54649367]
[1751511170986,3.78649367,152.38,152.31,56.10909367]
[1751511171376,6.5618,152.34,152.31,56.10909367]
[1751511172084,6.5618,152.34,152.32,6.5624]
[1751511173384,6.5618,152.34,152.31,56.10909367]
[1751511175984,6.562,152.33,152.31,49.54649367]
[1751511176486,3.78649367,152.38,152.31,49.54649367]
[1751511176987,3.78649367,152.36,152.31,45.76]
[1751511177190,6.5624,152.32,152.31,45.76]
[1751511177889,6.5621,152.33,152.31,45.76]
[1751511178793,6.5624,152.32,152.31,45.76]
[1751511179688,6.5624,152.32,152.3,2.201]
[1751511179990,6.5628,152.31,152.3,193.141]
[1751511180391,3.78649367,152.36,152.3,193.141]
[1751511180794,6.5628,152.32,152.3,193.141]
[1751511181187,6.5628,152.32,152.3,2.201]
[1751511181394,6.5628,152.32,152.3,193.161]
[1751511183594,6.5628,152.32,152.3,199.7242]
[1751511187899,6.5628,152.32,152.31,193.28657418]